fUSD/lending_fUSD_20250206
["ID","MTS","AMOUNT","RATE_DAILY","PERIOD"]
[351985700,1738867861580,-603.10583091,0.0001726,2]
[351985701,1738867861591,-500.0,0.0001726,2]
[351985702,1738867861602,-500.0,0.0001726,2]
[351985703,1738867861612,-500.0,0.0001726,2]
[351985704,1738867861623,-586.04,0.0001726,2]
[351985705,1738867861633,-1618.56,0.0001726,2]
[351985706,1738867861643,-210.358937,0.0001726,2]
[351985707,1738867861652,-500.0,0.0001726,2]
[351985708,1738867861662,-510.12,0.0001726,2]
[351985709,1738867861671,-500.0,0.0001726,2]
[351985710,1738867861681,-713.81,0.0001726,2]
[351985711,1738867861691,-500.0,0.0001726,2]
[351985712,1738867861700,-500.0,0.0001726,2]
[351985713,1738867861711,-724.59,0.0001726,2]
[351985714,1738867861721,-199.79205649,0.0001726,2]
[351985715,1738867861731,-500.0,0.0001726,2]
[351985716,1738867861742,-500.0,0.0001726,2]
[351985717,1738867861752,-587.97,0.0001726,2]
[351985718,1738867861762,-520.11,0.0001726,2]
[351985719,1738867861772,-154.121061,0.0001726,2]
[351985720,1738867861782,-737.05,0.0001726,2]
[351985721,1738867861796,-610.49,0.0001726,2]
[351985722,1738867861807,-500.0,0.0001726,2]
[351985723,1738867861818,-500.0,0.0001726,2]
[351985724,1738867861829,-500.0,0.0001726,2]
[351985725,1738867861839,-520.36,0.0001726,2]
[351985726,1738867861851,-500.0,0.0001726,2]
[351985727,1738867861862,-697.56,0.0001726,2]
[351985728,1738867861873,-500.0,0.0001726,2]
[351985729,1738867861883,-500.0,0.0001726,2]
[351985730,1738867861894,-500.0,0.0001726,2]
[351985731,1738867861905,-500.0,0.0001726,2]
[351985732,1738867861915,-500.0,0.0001726,2]
[351985733,1738867861925,-500.0,0.0001726,2]
[351985734,1738867861935,-500.0,0.0001726,2]
[351985735,1738867861946,-500.0,0.0001726,2]
[351985736,1738867861955,-554.3,0.0001726,2]
[351985737,1738867861966,-500.0,0.0001726,2]
[351985738,1738867861976,-500.0,0.0001726,2]
[351985739,1738867861987,-500.0,0.0001726,2]
[351985740,1738867861997,-500.0,0.0001726,2]
[351985741,1738867862007,-807.7,0.0001726,2]
[351985742,1738867862017,-500.0,0.0001726,2]
[351985743,1738867862027,-500.0,0.0001726,2]
[351985744,1738867862041,-902.38,0.0001726,2]
[351985745,1738867862051,-500.0,0.0001726,2]
[351985746,1738867862061,-500.0,0.0001726,2]
[351985747,1738867862071,-500.0,0.0001726,2]
[351985748,1738867862081,-543.18,0.0001726,2]
[351985749,1738867862091,-500.0,0.0001726,2]
[351985750,1738867862102,-500.0,0.0001726,2]
[351985751,1738867862113,-572.5,0.0001726,2]
[351985752,1738867862124,-500.0,0.0001726,2]
[351985753,1738867862137,-500.0,0.0001726,2]
[351985754,1738867862148,-500.0,0.0001726,2]
[351985755,1738867862159,-500.0,0.0001726,2]
[351985756,1738867862170,-847.5,0.0001726,2]
[351985757,1738867862180,-672.14,0.0001726,2]
[351985758,1738867862191,-500.0,0.0001726,2]
[351985759,1738867862201,-500.0,0.0001726,2]
[351985760,1738867862211,-500.0,0.0001726,2]
[351985761,1738867862222,-500.0,0.0001726,2]
[351985762,1738867862388,-500.0,0.0001726,2]
[351985763,1738867862399,-500.0,0.0001726,2]
[351985764,1738867862409,-500.0,0.0001726,2]
[351985765,1738867862420,-826.95,0.0001726,2]
[351985766,1738867862429,-908.0,0.0001726,2]
[351985767,1738867862441,-500.0,0.0001726,2]
[351985768,1738867862454,-500.0,0.0001726,2]
[351985769,1738867862464,-500.0,0.0001726,2]
[351985770,1738867862474,-500.0,0.0001726,2]
[351985771,1738867862486,-722.65,0.0001726,2]
[351985772,1738867862496,-500.0,0.0001726,2]
[351985773,1738867862506,-559.38,0.0001726,2]
[351985774,1738867862516,-500.0,0.0001726,2]
[351985775,1738867862526,-653.5,0.0001726,2]
[351985776,1738867862539,-647.68,0.0001726,2]
[351985777,1738867862549,-500.0,0.0001726,2]
[351985778,1738867862559,-500.0,0.0001726,2]
[351985779,1738867862568,-500.0,0.0001726,2]
[351985780,1738867862578,-757.82,0.0001726,2]
[351985781,1738867862587,-500.0,0.0001726,2]
[351985782,1738867862598,-1035.74,0.0001726,2]
[351985783,1738867862608,-500.0,0.0001726,2]
[351985784,1738867862618,-1369.64,0.0001726,2]
[351985785,1738867862627,-500.0,0.0001726,2]
[351985786,1738867862636,-775.72,0.0001726,2]
[351985787,1738867862646,-864.0,0.0001726,2]
[351985788,1738867862655,-736.48,0.0001726,2]
[351985789,1738867862665,-1197.28,0.0001726,2]
[351985790,1738867862674,-500.0,0.0001726,2]
[351985791,1738867862683,-1135.81,0.0001726,2]
[351985792,1738867862693,-500.0,0.0001726,2]
[351985793,1738867862702,-251.06676781,0.0001726,2]
[351985794,1738867862711,-600.58,0.0001726,2]
[351985795,1738867862720,-526.09,0.0001726,2]
[351985796,1738867862729,-500.0,0.0001726,2]
[351985797,1738867862738,-567.42,0.0001726,2]
[351985798,1738867862747,-514.34,0.0001726,2]
[351985799,1738867862757,-690.39,0.0001726,2]
[351985800,1738867862766,-1146.91,0.0001726,2]
[351985801,1738867862777,-578.84,0.0001726,2]
[351985802,1738867862789,-500.0,0.0001726,2]
[351985803,1738867862798,-500.0,0.0001726,2]
[351985804,1738867862808,-901.34,0.0001726,2]
[351985805,1738867862817,-734.86,0.0001726,2]
[351985806,1738867862827,-767.8,0.0001726,2]
[351985807,1738867862836,-500.0,0.0001726,2]
[351985808,1738867862846,-500.0,0.0001726,2]
[351985809,1738867862855,-500.0,0.0001726,2]
[351985810,1738867862865,-599.31,0.0001726,2]
[351985811,1738867862874,-706.15,0.0001726,2]
[351985812,1738867862884,-1595.4,0.0001726,2]
[351985813,1738867862893,-562.03,0.0001726,2]
[351985814,1738867862902,-764.68,0.0001726,2]
[351985815,1738867862912,-537.82,0.0001726,2]
[351985816,1738867862921,-2169.81,0.0001726,2]
[351985817,1738867862930,-2028.65,0.0001726,2]
[351985818,1738867862940,-500.0,0.0001726,2]
[351985819,1738867862950,-724.86,0.0001726,2]
[351985820,1738867862959,-917.83,0.0001726,2]
[351985821,1738867862969,-1019.86,0.0001726,2]
[351985822,1738867862979,-1039.14,0.0001726,2]
[351985823,1738867862988,-954.62,0.0001726,2]
[351985824,1738867862998,-1567.45,0.0001726,2]
[351985825,1738867863008,-931.49,0.0001726,2]
[351985826,1738867863019,-500.0,0.0001726,2]
[351985827,1738867863029,-963.56,0.0001726,2]
[351985828,1738867863044,-1053.66,0.0001726,2]
[351985829,1738867863054,-1242.56,0.0001726,2]
[351985830,1738867863065,-783.88,0.0001726,2]
[351985831,1738867863076,-500.0,0.0001726,2]
[351985832,1738867863087,-788.64,0.0001726,2]
[351985833,1738867863097,-517.64,0.0001726,2]
[351985834,1738867863108,-746.18,0.0001726,2]
[351985835,1738867863119,-536.31,0.0001726,2]
[351985836,1738867863134,-500.0,0.0001726,2]
[351985837,1738867863148,-500.0,0.0001726,2]
[351985838,1738867863159,-581.47,0.0001726,2]
[351985839,1738867863169,-615.1,0.0001726,2]
[351985840,1738867863181,-3238.11,0.0001726,2]
[351985841,1738867863191,-1033.64,0.0001726,2]
[351985842,1738867863201,-825.6,0.0001726,2]
[351985843,1738867863211,-1473.97,0.0001726,2]
[351985844,1738867863222,-547.15,0.0001726,2]
[351985845,1738867863233,-1199.51,0.0001726,2]
[351985846,1738867863243,-500.0,0.0001726,2]
[351985847,1738867863253,-500.0,0.0001726,2]
[351985848,1738867863263,-1581.33,0.0001726,2]
[351985849,1738867863273,-2018.68,0.0001726,2]
[351985850,1738867863286,-500.0,0.0001726,2]
[351985851,1738867863297,-450.49182727,0.0001726,2]
[351985852,1738867863308,-2039.23,0.0001726,2]
[351985853,1738867863318,-1529.26,0.0001726,2]
[351985854,1738867863329,-500.0,0.0001726,2]
[351985855,1738867863339,-899.5,0.0001726,2]
[351985856,1738867863349,-1421.24,0.0001726,2]
[351985857,1738867863359,-1045.4,0.0001726,2]
[351985858,1738867863370,-1066.46,0.0001726,2]
[351985859,1738867863380,-399.55051084,0.0001726,2]
[351985860,1738867863390,-500.0,0.0001726,2]
[351985861,1738867863401,-500.0,0.0001726,2]
[351985862,1738867863411,-500.0,0.0001726,2]
[351985863,1738867863422,-881.11,0.0001726,2]
[351985864,1738867863432,-2242.72,0.0001726,2]
[351985865,1738867863442,-500.0,0.0001726,2]
[351985866,1738867863452,-603.07,0.0001726,2]
[351985867,1738867863462,-852.06,0.0001726,2]
[351985868,1738867863472,-807.95,0.0001726,2]
[351985869,1738867863482,-500.0,0.0001726,2]
[351985870,1738867863492,-574.95,0.0001726,2]
[351985871,1738867863502,-1994.94,0.0001726,2]
[351985872,1738867863511,-500.0,0.0001726,2]
[351985873,1738867863521,-500.0,0.0001726,2]
[351985874,1738867863531,-1045.5,0.0001726,2]
[351985875,1738867863545,-568.56,0.0001726,2]
[351985876,1738867863555,-770.13,0.0001726,2]
[351985877,1738867863566,-500.0,0.0001726,2]
[351985878,1738867863576,-908.76,0.0001726,2]
[351985879,1738867863587,-1617.59,0.0001726,2]
[351985880,1738867863597,-500.0,0.0001726,2]
[351985881,1738867863607,-1114.4,0.0001726,2]
[351985882,1738867863619,-500.0,0.0001726,2]
[351985883,1738867863630,-762.98,0.0001726,2]
[351985884,1738867863640,-188.61165431,0.0001726,2]
[351985885,1738867863650,-518.5,0.0001726,2]
[351985886,1738867863661,-553.73,0.0001726,2]
[351985887,1738867863671,-903.53,0.0001726,2]
[351985888,1738867863682,-500.0,0.0001726,2]
[351985889,1738867863692,-27.21797726,0.0001726,2]
[351985890,1738867863907,-545.855405,0.0001726,2]
[351985891,1738867863921,-403.92485244,0.0001726,2]
[351985892,1738867863934,-500.9317653,0.0001726,2]
[351985893,1738867863950,-500.0,0.0001726,2]
[351985894,1738867863962,-1885.6682347,0.00017379,2]
[351985895,1738867863976,-45569.99845962,0.00017379,2]
[351985896,1738867863988,-150.0,0.00017386,2]
[351985897,1738867863999,-12723.72925464,0.00017387,2]
[351985898,1738867864009,-500.0,0.00017391,2]
[351985899,1738867864020,-500.0,0.00017391,2]
[351985900,1738867864030,-500.0,0.00017391,2]
[351985901,1738867864043,-268.76,0.00017391,2]
[351985902,1738867864054,-717.11,0.00017391,2]
[351985903,1738867864066,-500.0,0.00017392,2]
[351985904,1738867864076,-638.99,0.00017392,2]
[351985905,1738867864086,-843.98,0.00017392,2]
[351985906,1738867864096,-656.15,0.00017392,2]
[351985907,1738867864107,-686.49,0.00017392,2]
[351985908,1738867864117,-500.0,0.00017392,2]
[351985909,1738867864128,-607.76,0.00017392,2]
[351985910,1738867864138,-500.0,0.00017392,2]
[351985911,1738867864150,-601.46,0.00017392,2]
[351985912,1738867864160,-500.0,0.00017392,2]
[351985913,1738867864172,-673.03,0.00017392,2]
[351985914,1738867864182,-649.99,0.00017392,2]
[351985915,1738867864193,-500.0,0.00017392,2]
[351985916,1738867864203,-627.95,0.00017392,2]
[351985917,1738867864214,-500.0,0.00017392,2]
[351985918,1738867864224,-850.37,0.00017392,2]
[351985919,1738867864235,-500.0,0.00017392,2]
[351985920,1738867864245,-500.0,0.00017392,2]
[351985921,1738867864255,-517.41,0.00017392,2]
[351985922,1738867864265,-500.0,0.00017392,2]
[351985923,1738867864276,-556.84,0.00017392,2]
[351985924,1738867864287,-500.0,0.00017396,2]
[351985925,1738867864298,-652.13,0.00017396,2]
[351985926,1738867864309,-889.24,0.00017396,2]
[351985927,1738867864320,-500.0,0.00017396,2]
[351985928,1738867864331,-1376.12,0.00017396,2]
[351985929,1738867864342,-1350.96,0.00017396,2]
[351985930,1738867864352,-1057.77,0.00017396,2]
[351985931,1738867864363,-1205.55,0.00017396,2]
[351985932,1738867864374,-500.0,0.00017396,2]
[351985933,1738867864385,-1304.81,0.00017396,2]
[351985934,1738867864395,-3491.37,0.00017396,2]
[351985935,1738867864406,-1042.69,0.00017396,2]
[351985936,1738867864416,-1176.95,0.00017396,2]
[351985937,1738867864427,-827.43,0.00017396,2]
[351985938,1738867864439,-1058.21,0.00017396,2]
[351985939,1738867864449,-500.0,0.00017396,2]
[351985940,1738867864459,-861.36,0.00017396,2]
[351985941,1738867864469,-628.75,0.00017396,2]
[351985942,1738867864480,-1023.55,0.00017396,2]
[351985943,1738867864490,-810.56,0.00017396,2]
[351985944,1738867864500,-500.0,0.00017397,2]
[351985945,1738867864510,-500.0,0.00017397,2]
[351985946,1738867864520,-500.0,0.00017397,2]
[351985947,1738867864530,-500.0,0.00017397,2]
[351985948,1738867864542,-500.0,0.00017397,2]
[351985949,1738867864552,-517.65,0.00017397,2]
[351985950,1738867864563,-500.0,0.00017397,2]
[351985951,1738867864574,-642.03,0.00017397,2]
[351985952,1738867864585,-500.0,0.00017397,2]
[351985953,1738867864595,-500.0,0.00017397,2]
[351985954,1738867864607,-500.0,0.00017397,2]
[351985955,1738867864619,-500.0,0.00017397,2]
[351985956,1738867864629,-500.0,0.00017397,2]
[351985957,1738867864640,-512.4,0.00017397,2]
[351985958,1738867864652,-500.0,0.00017397,2]
[351985959,1738867864662,-500.0,0.00017397,2]
[351985960,1738867864673,-500.0,0.00017397,2]
[351985961,1738867864682,-738.71,0.00017397,2]
[351985962,1738867864691,-500.0,0.00017397,2]
[351985963,1738867864701,-500.0,0.00017397,2]
[351985964,1738867864711,-500.0,0.00017397,2]
[351985965,1738867864722,-500.0,0.00017397,2]
[351985966,1738867864732,-500.0,0.00017397,2]
[351985967,1738867864742,-513.02,0.00017397,2]
[351985968,1738867864752,-500.0,0.00017397,2]
[351985969,1738867864761,-500.0,0.00017397,2]
[351985970,1738867864771,-500.0,0.00017397,2]
[351985971,1738867864781,-500.0,0.00017397,2]
[351985972,1738867864794,-933.14,0.00017397,2]
[351985973,1738867864803,-500.0,0.00017397,2]
[351985974,1738867864812,-500.0,0.00017397,2]
[351985975,1738867864822,-500.0,0.00017397,2]
[351985976,1738867864832,-500.0,0.00017397,2]
[351985977,1738867864842,-500.0,0.00017397,2]
[351985978,1738867864852,-500.0,0.00017397,2]
[351985979,1738867864862,-807.79,0.00017397,2]
[351985980,1738867864871,-703.22,0.00017397,2]
[351985981,1738867864880,-500.0,0.00017397,2]
[351985982,1738867864889,-766.23,0.00017397,2]
[351985983,1738867864899,-513.79,0.00017397,2]
[351985984,1738867864908,-634.46,0.00017397,2]
[351985985,1738867864918,-500.0,0.00017397,2]
[351985986,1738867864927,-500.0,0.00017397,2]
[351985987,1738867864937,-500.0,0.00017397,2]
[351985988,1738867864947,-500.0,0.00017397,2]
[351985989,1738867864957,-500.0,0.00017397,2]
[351985990,1738867864967,-500.0,0.00017397,2]
[351985991,1738867864976,-500.0,0.00017397,2]
[351985992,1738867864988,-495.36148762,0.00017397,2]
[351985993,1738867864998,-500.0,0.00017397,2]
[351985994,1738867865008,-516.25,0.00017397,2]
[351985995,1738867865017,-500.0,0.00017397,2]
[351985996,1738867865026,-500.0,0.00017397,2]
[351985997,1738867865035,-500.0,0.00017397,2]
[351985998,1738867865045,-518.89,0.00017397,2]
[351985999,1738867865055,-225.30242407,0.00017397,2]
[351986000,1738867865066,-500.0,0.00017397,2]
[351986001,1738867865076,-690.07,0.00017397,2]
[351986002,1738867865088,-500.0,0.00017397,2]
[351986003,1738867865097,-500.0,0.00017397,2]
[351986004,1738867865107,-500.0,0.00017397,2]
[351986005,1738867865117,-500.0,0.00017397,2]
[351986006,1738867865130,-500.0,0.00017397,2]
[351986007,1738867865142,-500.0,0.00017397,2]
[351986008,1738867865151,-587.86,0.00017397,2]
[351986009,1738867865161,-581.65,0.00017397,2]
[351986010,1738867865171,-598.72,0.00017397,2]
[351986011,1738867865181,-500.0,0.00017397,2]
[351986012,1738867865191,-500.0,0.00017397,2]
[351986013,1738867865201,-500.0,0.00017397,2]
[351986014,1738867865211,-500.0,0.00017397,2]
[351986015,1738867865223,-500.0,0.00017397,2]
[351986016,1738867865233,-500.0,0.00017397,2]
[351986017,1738867865243,-586.04,0.00017397,2]
[351986018,1738867865252,-1618.56,0.00017397,2]
[351986019,1738867865262,-210.358937,0.00017397,2]
[351986020,1738867865271,-500.0,0.00017397,2]
[351986021,1738867865280,-510.12,0.00017397,2]
[351986022,1738867865291,-510.71,0.00017397,2]
[351986023,1738867865300,-713.81,0.00017397,2]
[351986024,1738867865310,-500.0,0.00017397,2]
[351986025,1738867865319,-724.59,0.00017397,2]
[351986026,1738867865330,-500.0,0.00017397,2]
[351986027,1738867865339,-500.0,0.00017397,2]
[351986028,1738867865349,-587.97,0.00017397,2]
[351986029,1738867865358,-520.11,0.00017397,2]
[351986030,1738867865367,-154.121061,0.00017397,2]
[351986031,1738867865377,-737.05,0.00017397,2]
[351986032,1738867865386,-610.49,0.00017397,2]
[351986033,1738867865396,-500.0,0.00017397,2]
[351986034,1738867865406,-500.0,0.00017397,2]
[351986035,1738867865415,-500.0,0.00017397,2]
[351986036,1738867865424,-520.36,0.00017397,2]
[351986037,1738867865434,-549.02731878,0.00017397,2]
[351986038,1738867865443,-697.56,0.00017397,2]
[351986039,1738867865453,-500.0,0.00017397,2]
[351986040,1738867865462,-500.0,0.00017397,2]
[351986041,1738867865472,-500.0,0.00017397,2]
[351986042,1738867865482,-500.0,0.00017397,2]
[351986043,1738867865491,-366.35663751,0.00017397,2]
[351986044,1738867865500,-500.0,0.00017397,2]
[351986045,1738867865510,-500.0,0.00017397,2]
[351986046,1738867865520,-500.0,0.00017397,2]
[351986047,1738867865530,-554.3,0.00017397,2]
[351986048,1738867865540,-500.0,0.00017397,2]
[351986049,1738867865550,-500.0,0.00017397,2]
[351986050,1738867865561,-500.0,0.00017397,2]
[351986051,1738867865570,-500.0,0.00017397,2]
[351986052,1738867865580,-807.7,0.00017397,2]
[351986053,1738867865590,-500.0,0.00017397,2]
[351986054,1738867865600,-902.38,0.00017397,2]
[351986055,1738867865609,-500.0,0.00017397,2]
[351986056,1738867865620,-500.0,0.00017397,2]
[351986057,1738867865629,-500.0,0.00017397,2]
[351986058,1738867865640,-543.18,0.00017397,2]
[351986059,1738867865650,-500.0,0.00017397,2]
[351986060,1738867865827,-572.5,0.00017397,2]
[351986061,1738867865838,-500.0,0.00017397,2]
[351986062,1738867865848,-500.0,0.00017397,2]
[351986063,1738867865858,-500.0,0.00017397,2]
[351986064,1738867865869,-500.0,0.00017397,2]
[351986065,1738867865878,-500.0,0.00017397,2]
[351986066,1738867865888,-847.5,0.00017397,2]
[351986067,1738867865898,-672.14,0.00017397,2]
[351986068,1738867865908,-410.29,0.00017397,2]
[351986069,1738867865919,-500.0,0.00017397,2]
[351986070,1738867865929,-500.0,0.00017397,2]
[351986071,1738867865939,-500.0,0.00017397,2]
[351986072,1738867865949,-360.8,0.00017397,2]
[351986073,1738867865960,-500.0,0.00017397,2]
[351986074,1738867865969,-500.0,0.00017397,2]
[351986075,1738867865979,-826.95,0.00017397,2]
[351986076,1738867865989,-908.0,0.00017397,2]
[351986077,1738867865999,-500.0,0.00017397,2]
[351986078,1738867866008,-500.0,0.00017397,2]
[351986079,1738867866019,-312.1923284,0.00017397,2]
[351986080,1738867866030,-486.26808475,0.00017397,2]
[351986081,1738867866045,-722.65,0.00017397,2]
[351986082,1738867866054,-500.0,0.00017397,2]
[351986083,1738867866064,-559.38,0.00017397,2]
[351986084,1738867866074,-232.87,0.00017397,2]
[351986085,1738867866083,-653.5,0.00017397,2]
[351986086,1738867866093,-647.68,0.00017397,2]
[351986087,1738867866103,-500.0,0.00017397,2]
[351986088,1738867866113,-500.0,0.00017397,2]
[351986089,1738867866123,-500.0,0.00017397,2]
[351986090,1738867866133,-757.82,0.00017397,2]
[351986091,1738867866146,-500.0,0.00017397,2]
[351986092,1738867866155,-1035.74,0.00017397,2]
[351986093,1738867866165,-500.0,0.00017397,2]
[351986094,1738867866175,-1369.64,0.00017397,2]
[351986095,1738867866186,-542.33508955,0.00017397,2]
[351986096,1738867866195,-775.72,0.00017397,2]
[351986097,1738867866206,-864.0,0.00017397,2]
[351986098,1738867866216,-736.48,0.00017397,2]
[351986099,1738867866227,-1197.28,0.00017397,2]
[351986100,1738867866237,-500.0,0.00017397,2]
[351986101,1738867866247,-1135.81,0.00017397,2]
[351986102,1738867866258,-500.0,0.00017397,2]
[351986103,1738867866269,-600.58,0.00017397,2]
[351986104,1738867866279,-526.09,0.00017397,2]
[351986105,1738867866292,-500.0,0.00017397,2]
[351986106,1738867866302,-567.42,0.00017397,2]
[351986107,1738867866312,-514.34,0.00017397,2]
[351986108,1738867866322,-690.39,0.00017397,2]
[351986109,1738867866332,-1146.91,0.00017397,2]
[351986110,1738867866342,-578.84,0.00017397,2]
[351986111,1738867866351,-500.0,0.00017397,2]
[351986112,1738867866361,-500.0,0.00017397,2]
[351986113,1738867866371,-901.34,0.00017397,2]
[351986114,1738867866381,-734.86,0.00017397,2]
[351986115,1738867866390,-767.8,0.00017397,2]
[351986116,1738867866400,-500.0,0.00017397,2]
[351986117,1738867866411,-500.0,0.00017397,2]
[351986118,1738867866422,-500.0,0.00017397,2]
[351986119,1738867866432,-599.31,0.00017397,2]
[351986120,1738867866441,-706.15,0.00017397,2]
[351986121,1738867866452,-1595.4,0.00017397,2]
[351986122,1738867866462,-562.03,0.00017397,2]
[351986123,1738867866473,-764.68,0.00017397,2]
[351986124,1738867866483,-537.82,0.00017397,2]
[351986125,1738867866493,-2169.81,0.00017397,2]
[351986126,1738867866503,-2028.65,0.00017397,2]
[351986127,1738867866512,-177.57734217,0.00017397,2]
[351986128,1738867866521,-724.86,0.00017397,2]
[351986129,1738867866530,-917.83,0.00017397,2]
[351986130,1738867866545,-1019.86,0.00017397,2]
[351986131,1738867866555,-1039.14,0.00017397,2]
[351986132,1738867866565,-954.62,0.00017397,2]
[351986133,1738867866575,-1567.45,0.00017397,2]
[351986134,1738867866585,-931.49,0.00017397,2]
[351986135,1738867866594,-500.0,0.00017397,2]
[351986136,1738867866603,-963.56,0.00017397,2]
[351986137,1738867866613,-1053.66,0.00017397,2]
[351986138,1738867866623,-1242.56,0.00017397,2]
[351986139,1738867866634,-783.88,0.00017397,2]
[351986140,1738867866645,-500.0,0.00017397,2]
[351986141,1738867866655,-788.64,0.00017397,2]
[351986142,1738867866665,-517.64,0.00017397,2]
[351986143,1738867866674,-746.18,0.00017397,2]
[351986144,1738867866684,-536.31,0.00017397,2]
[351986145,1738867866695,-500.0,0.00017397,2]
[351986146,1738867866705,-500.0,0.00017397,2]
[351986147,1738867866715,-581.47,0.00017397,2]
[351986148,1738867866726,-615.1,0.00017397,2]
[351986149,1738867866736,-3238.11,0.00017397,2]
[351986150,1738867866746,-1033.64,0.00017397,2]
[351986151,1738867866755,-825.6,0.00017397,2]
[351986152,1738867866765,-1473.97,0.00017397,2]
[351986153,1738867866775,-547.15,0.00017397,2]
[351986154,1738867866784,-1199.51,0.00017397,2]
[351986155,1738867866798,-500.0,0.00017397,2]
[351986156,1738867866808,-500.0,0.00017397,2]
[351986157,1738867866817,-1581.33,0.00017397,2]
[351986158,1738867866827,-2018.68,0.00017397,2]
[351986159,1738867866837,-500.0,0.00017397,2]
[351986160,1738867866847,-2039.23,0.00017397,2]
[351986161,1738867866857,-1529.26,0.00017397,2]
[351986162,1738867866867,-500.0,0.00017397,2]
[351986163,1738867866878,-899.5,0.00017397,2]
[351986164,1738867866888,-1421.24,0.00017397,2]
[351986165,1738867866897,-1045.4,0.00017397,2]
[351986166,1738867866908,-1066.46,0.00017397,2]
[351986167,1738867866918,-219.89727346,0.00017397,2]
[351986168,1738867866929,-500.0,0.00017397,2]
[351986169,1738867866939,-881.11,0.00017397,2]
[351986170,1738867866949,-2242.72,0.00017397,2]
[351986171,1738867866959,-500.0,0.00017397,2]
[351986172,1738867866969,-603.07,0.00017397,2]
[351986173,1738867866979,-852.06,0.00017397,2]
[351986174,1738867866989,-807.95,0.00017397,2]
[351986175,1738867866999,-574.95,0.00017397,2]
[351986176,1738867867009,-500.0,0.00017397,2]
[351986177,1738867867019,-1994.94,0.00017397,2]
[351986178,1738867867029,-500.0,0.00017397,2]
[351986179,1738867867038,-500.0,0.00017397,2]
[351986180,1738867867049,-1045.5,0.00017397,2]
[351986181,1738867867059,-568.56,0.00017397,2]
[351986182,1738867867069,-770.13,0.00017397,2]
[351986183,1738867867079,-500.0,0.00017397,2]
[351986184,1738867867089,-908.76,0.00017397,2]
[351986185,1738867867099,-1617.59,0.00017397,2]
[351986186,1738867867109,-452.78357947,0.00017397,2]
[351986187,1738867867119,-1114.4,0.00017397,2]
[351986188,1738867867129,-500.0,0.00017397,2]
[351986189,1738867867143,-762.98,0.00017397,2]
[351986190,1738867867152,-518.5,0.00017397,2]
[351986191,1738867867162,-553.73,0.00017397,2]
[351986192,1738867867172,-903.53,0.00017397,2]
[351986193,1738867867182,-500.0,0.00017397,2]
[351986194,1738867867191,-1477.93,0.00017397,2]
[351986195,1738867867201,-500.0,0.00017397,2]
[351986196,1738867867210,-737.62353093,0.00017453,2]
[351986197,1738867867220,-2095.94376648,0.00017474,2]
[351986198,1738867867230,-369.87,0.00017481,2]
[351986199,1738867867239,-150.0,0.00017499,2]